[Event "November 21 Early 2023"]
[Site "https://www.chess.com"]
[Date "2023.11.21"]
[Round "9"]
[White "Andreikin, Dmitry"]
[Black "Maghsoodloo, Parham"]
[Result "1/2-1/2"]
[Board "2"]
[TimeControl "180+1"]
[WhiteFideId "4158814"]
[BlackFideId "12539929"]
[WhiteElo "2741"]
[BlackElo "2660"]
[WhiteTeam "FID"]
[BlackTeam "IRI"]
[WhiteClock "0:00:33"]
[BlackClock "0:00:23"]

1. d4 {[%clk 0:03:00]}  Nf6 {[%clk 0:03:00]} 2. c4 {[%clk 0:03:01]}  e6 {[%clk 0:03:00]} 3. Nf3 {[%clk 0:03:00]}  b6 {[%clk 0:02:59]} 4. a3 {[%clk 0:02:58]}  Bb7 {[%clk 0:02:58]} 5. Nc3 {[%clk 0:02:57]}  d5 {[%clk 0:02:59]} 6. cxd5 {[%clk 0:02:58]}  Nxd5 {[%clk 0:02:59]} 7. e3 {[%clk 0:02:55]}  Be7 {[%clk 0:02:58]} 8. Bb5+ {[%clk 0:02:54]}  c6 {[%clk 0:02:57]} 9. Bd3 {[%clk 0:02:51]}  O-O {[%clk 0:02:53]} 10. e4 {[%clk 0:02:50]}  Nxc3 {[%clk 0:02:53]} 11. bxc3 {[%clk 0:02:51]}  c5 {[%clk 0:02:54]} 12. O-O {[%clk 0:02:51]}  Nd7 {[%clk 0:02:51]} 13. Qe2 {[%clk 0:02:50]}  Rc8 {[%clk 0:02:49]} 14. a4 {[%clk 0:02:48]}  cxd4 {[%clk 0:02:48]} 15. cxd4 {[%clk 0:02:48]}  h6 {[%clk 0:02:37]} 16. Rd1 {[%clk 0:02:45]}  Qc7 {[%clk 0:02:30]} 17. Bb2 {[%clk 0:02:43]}  Rfd8 {[%clk 0:02:29]} 18. Qe3 {[%clk 0:02:37]}  Nf6 {[%clk 0:02:23]} 19. h3 {[%clk 0:02:37]}  Nh5 {[%clk 0:02:20]} 20. Ne5 {[%clk 0:02:31]}  Bg5 {[%clk 0:02:11]} 21. Qf3 {[%clk 0:02:30]}  Nf4 {[%clk 0:02:10]} 22. Bb1 {[%clk 0:01:59]}  Ba6 {[%clk 0:01:07]} 23. Re1 {[%clk 0:01:53]}  f6 {[%clk 0:01:07]} 24. Ng4 {[%clk 0:01:40]}  h5 {[%clk 0:01:01]} 25. Ne3 {[%clk 0:01:36]}  Nd3 {[%clk 0:00:42]} 26. Bxd3 {[%clk 0:01:32]}  Bxd3 {[%clk 0:00:43]} 27. Rad1 {[%clk 0:01:23]}  Bc2 {[%clk 0:00:42]} 28. Rc1 {[%clk 0:01:03]}  Bxe3 {[%clk 0:00:41]} 29. Rxe3 {[%clk 0:01:00]}  Qf7 {[%clk 0:00:41]} 30. a5 {[%clk 0:00:52]}  b5 {[%clk 0:00:36]} 31. Qe2 {[%clk 0:00:44]}  Ba4 {[%clk 0:00:32]} 32. Rxc8 {[%clk 0:00:44]}  Rxc8 {[%clk 0:00:33]} 33. Rc3 {[%clk 0:00:45]}  Rxc3 {[%clk 0:00:21]} 34. Bxc3 {[%clk 0:00:46]}  Qc7 {[%clk 0:00:21]} 35. Qxh5 {[%clk 0:00:31]}  Qxc3 {[%clk 0:00:20]} 36. Qe8+ {[%clk 0:00:31]}  Kh7 {[%clk 0:00:21]} 37. Qh5+ {[%clk 0:00:32]}  Kg8 {[%clk 0:00:22]} 38. Qe8+ {[%clk 0:00:32]}  Kh7 {[%clk 0:00:22]} 39. Qh5+ {[%clk 0:00:33]}  Kg8 {[%clk 0:00:23]} 1/2-1/2

[Event "November 21 Early 2023"]
[Site "https://www.chess.com"]
[Date "2023.11.21"]
[Round "9"]
[White "Maksimovic, Bojan"]
[Black "Dubov, Daniil"]
[Result "0-1"]
[Board "6"]
[TimeControl "180+1"]
[WhiteFideId "14408120"]
[BlackFideId "24126055"]
[WhiteElo "2546"]
[BlackElo "2767"]
[WhiteTeam "BIH"]
[BlackTeam "RUS"]
[WhiteClock "0:00:07"]
[BlackClock "0:00:05"]

1. a3 {[%clk 0:03:00]}  g6 {[%clk 0:02:59]} 2. e4 {[%clk 0:03:00]}  c5 {[%clk 0:02:57]} 3. Bc4 {[%clk 0:02:47]}  Bg7 {[%clk 0:02:56]} 4. Nf3 {[%clk 0:02:47]}  Nc6 {[%clk 0:02:56]} 5. d3 {[%clk 0:02:47]}  e6 {[%clk 0:02:54]} 6. Ba2 {[%clk 0:02:46]}  Nge7 {[%clk 0:02:54]} 7. Nc3 {[%clk 0:02:44]}  a6 {[%clk 0:02:52]} 8. O-O {[%clk 0:02:44]}  b5 {[%clk 0:02:50]} 9. Be3 {[%clk 0:02:43]}  d6 {[%clk 0:02:50]} 10. d4 {[%clk 0:02:42]}  cxd4 {[%clk 0:02:48]} 11. Nxd4 {[%clk 0:02:43]}  O-O {[%clk 0:02:29]} 12. Qd2 {[%clk 0:02:43]}  Bb7 {[%clk 0:02:13]} 13. Rad1 {[%clk 0:02:42]}  Rc8 {[%clk 0:01:47]} 14. Nde2 {[%clk 0:02:42]}  b4 {[%clk 0:01:41]} 15. axb4 {[%clk 0:02:27]}  Nxb4 {[%clk 0:01:42]} 16. Bb3 {[%clk 0:02:27]}  a5 {[%clk 0:01:34]} 17. Qxd6 {[%clk 0:02:14]}  Qxd6 {[%clk 0:01:33]} 18. Rxd6 {[%clk 0:02:15]}  Ba6 {[%clk 0:01:34]} 19. Rc1 {[%clk 0:01:53]}  Nec6 {[%clk 0:01:27]} 20. f4 {[%clk 0:01:43]}  Bxe2 {[%clk 0:00:53]} 21. Nxe2 {[%clk 0:01:44]}  Bxb2 {[%clk 0:00:54]} 22. Rb1 {[%clk 0:01:44]}  Bf6 {[%clk 0:00:50]} 23. c3 {[%clk 0:01:39]}  Be7 {[%clk 0:00:46]} 24. Rd7 {[%clk 0:00:45]}  Na6 {[%clk 0:00:45]} 25. Nd4 {[%clk 0:00:44]}  Bc5 {[%clk 0:00:40]} 26. Ba4 {[%clk 0:00:38]}  Ncb8 {[%clk 0:00:27]} 27. Rdb7 {[%clk 0:00:36]}  Rfd8 {[%clk 0:00:26]} 28. Kf2 {[%clk 0:00:36]}  Bf8 {[%clk 0:00:26]} 29. f5 {[%clk 0:00:35]}  Nc5 {[%clk 0:00:23]} 30. Bc2 {[%clk 0:00:33]}  Nxb7 {[%clk 0:00:23]} 31. Rxb7 {[%clk 0:00:34]}  Rxc3 {[%clk 0:00:21]} 32. fxe6 {[%clk 0:00:35]}  fxe6 {[%clk 0:00:17]} 33. Bb3 {[%clk 0:00:35]}  Bc5 {[%clk 0:00:12]} 34. Nxe6 {[%clk 0:00:29]}  Bxe3+ {[%clk 0:00:12]} 35. Ke1 {[%clk 0:00:30]}  Rdc8 {[%clk 0:00:06]} 36. Bd5 {[%clk 0:00:25]}  Kh8 {[%clk 0:00:05]} 37. Ke2 {[%clk 0:00:22]}  a4 {[%clk 0:00:06]} 38. Rf7 {[%clk 0:00:14]}  Bh6 {[%clk 0:00:06]} 39. Ra7 {[%clk 0:00:12]}  a3 {[%clk 0:00:06]} 40. g4 {[%clk 0:00:13]}  Re3+ {[%clk 0:00:05]} 41. Kf2 {[%clk 0:00:13]}  Rc2+ {[%clk 0:00:05]} 42. Kf1 {[%clk 0:00:13]}  Rf3+ {[%clk 0:00:05]} 43. Ke1 {[%clk 0:00:12]}  Rc1+ {[%clk 0:00:05]} 44. Ke2 {[%clk 0:00:13]}  Re3+ {[%clk 0:00:06]} 45. Kf2 {[%clk 0:00:11]}  Rc2+ {[%clk 0:00:06]} 46. Kf1 {[%clk 0:00:11]}  Rc8 {[%clk 0:00:05]} 47. g5 {[%clk 0:00:12]}  Bf8 {[%clk 0:00:05]} 48. Rf7 {[%clk 0:00:12]}  Bb4 {[%clk 0:00:04]} 49. Ra7 {[%clk 0:00:12]}  Rd3 {[%clk 0:00:04]} 50. Ke2 {[%clk 0:00:11]}  Rdc3 {[%clk 0:00:04]} 51. h4 {[%clk 0:00:10]}  Nc6 {[%clk 0:00:04]} 52. Ra4 {[%clk 0:00:08]}  Be7 {[%clk 0:00:03]} 53. h5 {[%clk 0:00:08]}  gxh5 {[%clk 0:00:04]} 54. g6 {[%clk 0:00:07]}  hxg6 {[%clk 0:00:04]} 55. Ra6 {[%clk 0:00:08]}  Ne5 {[%clk 0:00:04]} 56. Nf4 {[%clk 0:00:08]}  Kg7 {[%clk 0:00:03]} 57. Re6 {[%clk 0:00:08]}  Bf6 {[%clk 0:00:04]} 58. Ra6 {[%clk 0:00:08]}  Rc2+ {[%clk 0:00:04]} 59. Kd1 {[%clk 0:00:08]}  Rc1+ {[%clk 0:00:04]} 60. Kd2 {[%clk 0:00:08]}  R8c2+ {[%clk 0:00:05]} 61. Ke3 {[%clk 0:00:08]}  Bg5 {[%clk 0:00:05]} 62. Ra7+ {[%clk 0:00:07]}  Kh6 {[%clk 0:00:05]} 63. Bg8 {[%clk 0:00:07]}  Rc3+ {[%clk 0:00:05]} 64. Kd4 {[%clk 0:00:08]}  Bxf4 {[%clk 0:00:06]} 65. Rh7+ {[%clk 0:00:06]}  Kg5 {[%clk 0:00:06]} 66. Rxh5+ {[%clk 0:00:07]}  gxh5 {[%clk 0:00:05]} 67. Bc4 {[%clk 0:00:07]} 0-1

[Event "November 21 Early 2023"]
[Site "https://www.chess.com"]
[Date "2023.11.21"]
[Round "9"]
[White "Nihal Sarin"]
[Black "Materia, Marco"]
[Result "1-0"]
[Board "7"]
[TimeControl "180+1"]
[WhiteFideId "25092340"]
[BlackFideId "45150451"]
[WhiteElo "2689"]
[BlackElo "2451"]
[WhiteTeam "IND"]
[BlackTeam "FRA"]
[WhiteClock "0:01:39"]
[BlackClock "0:01:19"]

1. d4 {[%clk 0:03:00]}  Nf6 {[%clk 0:03:00]} 2. c4 {[%clk 0:03:00]}  e6 {[%clk 0:03:00]} 3. Nf3 {[%clk 0:03:01]}  d5 {[%clk 0:03:00]} 4. Nc3 {[%clk 0:03:01]}  Be7 {[%clk 0:03:00]} 5. Bg5 {[%clk 0:03:01]}  h6 {[%clk 0:03:00]} 6. Bxf6 {[%clk 0:03:02]}  Bxf6 {[%clk 0:03:00]} 7. e3 {[%clk 0:03:03]}  O-O {[%clk 0:03:00]} 8. Qc2 {[%clk 0:03:04]}  c6 {[%clk 0:02:55]} 9. O-O-O {[%clk 0:03:03]}  Nd7 {[%clk 0:02:53]} 10. h4 {[%clk 0:03:04]}  dxc4 {[%clk 0:02:46]} 11. g4 {[%clk 0:03:03]}  g6 {[%clk 0:02:37]} 12. g5 {[%clk 0:02:57]}  hxg5 {[%clk 0:02:32]} 13. hxg5 {[%clk 0:02:56]}  Bxg5 {[%clk 0:02:29]} 14. Bxc4 {[%clk 0:02:57]}  Kg7 {[%clk 0:02:16]} 15. Rdg1 {[%clk 0:02:53]}  Bf6 {[%clk 0:02:09]} 16. Bxe6 {[%clk 0:02:52]}  Qe8 {[%clk 0:02:06]} 17. Bxf7 {[%clk 0:02:04]}  Qxf7 {[%clk 0:02:03]} 18. Ne4 {[%clk 0:02:05]}  Rh8 {[%clk 0:01:29]} 19. Rxh8 {[%clk 0:01:37]}  Kxh8 {[%clk 0:01:29]} 20. Nxf6 {[%clk 0:01:37]}  Qxf6 {[%clk 0:01:24]} 21. Rxg6 {[%clk 0:01:36]}  Qxf3 {[%clk 0:01:20]} 22. Rh6+ {[%clk 0:01:36]}  Kg7 {[%clk 0:01:19]} 23. Qg6+ {[%clk 0:01:37]}  Kf8 {[%clk 0:01:18]} 24. Rh8+ {[%clk 0:01:38]}  Ke7 {[%clk 0:01:19]} 25. Re8# {[%clk 0:01:39]} 1-0

[Event "November 21 Early 2023"]
[Site "https://www.chess.com"]
[Date "2023.11.21"]
[Round "9"]
[White "Halkias, Stelios"]
[Black "Shimanov, Aleksandr"]
[Result "1-0"]
[Board "8"]
[TimeControl "180+1"]
[WhiteFideId "4201809"]
[BlackFideId "4198603"]
[WhiteElo "2462"]
[BlackElo "2611"]
[WhiteTeam "GRE"]
[BlackTeam "RUS"]
[WhiteClock "0:00:54"]
[BlackClock "0:00:03"]

1. Nf3 {[%clk 0:03:00]}  d5 {[%clk 0:02:48]} 2. d4 {[%clk 0:03:00]}  Nf6 {[%clk 0:02:47]} 3. c4 {[%clk 0:03:00]}  c6 {[%clk 0:02:43]} 4. Nc3 {[%clk 0:02:59]}  dxc4 {[%clk 0:02:43]} 5. e4 {[%clk 0:02:58]}  b5 {[%clk 0:02:42]} 6. Be2 {[%clk 0:02:58]}  e6 {[%clk 0:02:39]} 7. O-O {[%clk 0:02:58]}  Be7 {[%clk 0:02:37]} 8. a4 {[%clk 0:02:55]}  b4 {[%clk 0:02:35]} 9. e5 {[%clk 0:02:55]}  Nd5 {[%clk 0:02:32]} 10. Ne4 {[%clk 0:02:54]}  Ba6 {[%clk 0:02:31]} 11. Bg5 {[%clk 0:02:51]}  O-O {[%clk 0:02:30]} 12. Bxe7 {[%clk 0:02:48]}  Qxe7 {[%clk 0:02:31]} 13. Rc1 {[%clk 0:02:48]}  c3 {[%clk 0:02:14]} 14. bxc3 {[%clk 0:02:44]}  bxc3 {[%clk 0:02:13]} 15. Nxc3 {[%clk 0:02:39]}  Qb4 {[%clk 0:01:58]} 16. Ne4 {[%clk 0:02:27]}  Bxe2 {[%clk 0:01:52]} 17. Qxe2 {[%clk 0:02:27]}  Qxa4 {[%clk 0:01:53]} 18. Nc5 {[%clk 0:02:17]}  Qb5 {[%clk 0:01:53]} 19. Qe4 {[%clk 0:02:15]}  h6 {[%clk 0:01:44]} 20. Ra1 {[%clk 0:02:05]}  a5 {[%clk 0:01:18]} 21. Rfb1 {[%clk 0:01:58]}  Nb4 {[%clk 0:01:13]} 22. Qg4 {[%clk 0:01:33]}  N8a6 {[%clk 0:01:12]} 23. Ne4 {[%clk 0:01:33]}  Kh8 {[%clk 0:01:07]} 24. Nfg5 {[%clk 0:01:26]}  hxg5 {[%clk 0:00:56]} 25. Rb3 {[%clk 0:01:20]}  Kg8 {[%clk 0:00:39]} 26. Nxg5 {[%clk 0:01:11]}  Qc4 {[%clk 0:00:14]} 27. Rh3 {[%clk 0:00:56]}  f6 {[%clk 0:00:03]} 28. Rh8+ {[%clk 0:00:54]}  Kxh8 {[%clk 0:00:02]} 29. Qh5+ {[%clk 0:00:54]}  Kg8 {[%clk 0:00:03]} 30. Qh7# {[%clk 0:00:54]} 1-0

[Event "November 21 Early 2023"]
[Site "https://www.chess.com"]
[Date "2023.11.21"]
[Round "9"]
[White "Bortnyk, Olexandr"]
[Black "Vakhlamov, Igor L."]
[Result "1-0"]
[Board "11"]
[TimeControl "180+1"]
[WhiteFideId "14120828"]
[BlackFideId "24126748"]
[WhiteElo "2725"]
[BlackElo "2407"]
[WhiteTeam "UKR"]
[BlackTeam "RUS"]
[WhiteClock "0:01:21"]
[BlackClock "0:00:45"]

1. e4 {[%clk 0:03:00]}  c5 {[%clk 0:02:59]} 2. c3 {[%clk 0:03:00]}  e6 {[%clk 0:02:56]} 3. Nf3 {[%clk 0:02:59]}  d5 {[%clk 0:02:56]} 4. e5 {[%clk 0:02:59]}  Nc6 {[%clk 0:02:53]} 5. d4 {[%clk 0:02:59]}  Nge7 {[%clk 0:02:53]} 6. Bd3 {[%clk 0:02:58]}  cxd4 {[%clk 0:02:46]} 7. cxd4 {[%clk 0:02:59]}  Nf5 {[%clk 0:02:47]} 8. Bxf5 {[%clk 0:02:59]}  exf5 {[%clk 0:02:48]} 9. O-O {[%clk 0:02:59]}  Be7 {[%clk 0:02:47]} 10. Nc3 {[%clk 0:03:00]}  g5 {[%clk 0:02:43]} 11. Qd3 {[%clk 0:02:20]}  Be6 {[%clk 0:02:21]} 12. Nb5 {[%clk 0:02:11]}  f4 {[%clk 0:02:11]} 13. Re1 {[%clk 0:02:09]}  g4 {[%clk 0:02:00]} 14. Nd2 {[%clk 0:02:05]}  a6 {[%clk 0:01:51]} 15. Nd6+ {[%clk 0:02:01]}  Bxd6 {[%clk 0:01:51]} 16. exd6 {[%clk 0:02:02]}  Qxd6 {[%clk 0:01:49]} 17. Nb3 {[%clk 0:02:02]}  O-O-O {[%clk 0:01:30]} 18. Bd2 {[%clk 0:01:55]}  Kb8 {[%clk 0:01:22]} 19. Rac1 {[%clk 0:01:53]}  f3 {[%clk 0:01:20]} 20. g3 {[%clk 0:01:53]}  Ka7 {[%clk 0:01:13]} 21. Nc5 {[%clk 0:01:54]}  Rde8 {[%clk 0:01:08]} 22. Bf4 {[%clk 0:01:50]}  Qd8 {[%clk 0:01:07]} 23. Nxa6 {[%clk 0:01:26]}  Qb6 {[%clk 0:01:07]} 24. Nc7 {[%clk 0:01:24]}  Rc8 {[%clk 0:00:47]} 25. Qa3+ {[%clk 0:01:20]}  Qa5 {[%clk 0:00:47]} 26. Rxc6 {[%clk 0:01:19]}  Qxa3 {[%clk 0:00:45]} 27. Nb5+ {[%clk 0:01:19]}  Ka8 {[%clk 0:00:46]} 28. Rxc8+ {[%clk 0:01:20]}  Rxc8 {[%clk 0:00:45]} 29. Nxa3 {[%clk 0:01:21]}  Rc1 {[%clk 0:00:45]} 30. Rxc1 {[%clk 0:01:21]} 1-0

[Event "November 21 Early 2023"]
[Site "https://www.chess.com"]
[Date "2023.11.21"]
[Round "9"]
[White "Nguyen, Ngoc Truong Son"]
[Black "Raja Rithvik R"]
[Result "0-1"]
[Board "12"]
[TimeControl "180+1"]
[WhiteFideId "12401110"]
[BlackFideId "35007394"]
[WhiteElo "2556"]
[BlackElo "2395"]
[WhiteTeam "VIE"]
[BlackTeam "IND"]
[WhiteClock "0:00:07"]
[BlackClock "0:00:28"]

1. e4 {[%clk 0:03:00]}  c5 {[%clk 0:02:59]} 2. Nf3 {[%clk 0:03:00]}  d6 {[%clk 0:02:58]} 3. d4 {[%clk 0:03:00]}  cxd4 {[%clk 0:02:59]} 4. Nxd4 {[%clk 0:03:00]}  Nf6 {[%clk 0:02:59]} 5. Nc3 {[%clk 0:03:01]}  a6 {[%clk 0:03:00]} 6. h3 {[%clk 0:03:01]}  e6 {[%clk 0:02:59]} 7. g4 {[%clk 0:03:01]}  Be7 {[%clk 0:02:59]} 8. Be3 {[%clk 0:02:58]}  b5 {[%clk 0:02:57]} 9. Bg2 {[%clk 0:02:54]}  Bb7 {[%clk 0:02:56]} 10. g5 {[%clk 0:02:51]}  Nfd7 {[%clk 0:02:55]} 11. h4 {[%clk 0:02:50]}  b4 {[%clk 0:02:49]} 12. Nce2 {[%clk 0:02:47]}  Nc5 {[%clk 0:02:49]} 13. Ng3 {[%clk 0:02:45]}  Nc6 {[%clk 0:02:48]} 14. Nxc6 {[%clk 0:02:18]}  Bxc6 {[%clk 0:02:48]} 15. Qd4 {[%clk 0:02:18]}  O-O {[%clk 0:02:37]} 16. Qxb4 {[%clk 0:02:02]}  Rb8 {[%clk 0:02:35]} 17. Qc3 {[%clk 0:02:01]}  Qd7 {[%clk 0:02:13]} 18. b3 {[%clk 0:01:26]}  Rfc8 {[%clk 0:02:13]} 19. Qd2 {[%clk 0:01:21]}  Qb7 {[%clk 0:02:09]} 20. Bxc5 {[%clk 0:01:05]}  dxc5 {[%clk 0:02:10]} 21. O-O {[%clk 0:01:05]}  Rd8 {[%clk 0:02:08]} 22. Qc3 {[%clk 0:01:02]}  Qb4 {[%clk 0:02:00]} 23. Qxb4 {[%clk 0:01:00]}  cxb4 {[%clk 0:02:01]} 24. Rfd1 {[%clk 0:00:58]}  Bd6 {[%clk 0:01:57]} 25. e5 {[%clk 0:00:46]}  Bxg2 {[%clk 0:01:39]} 26. Rxd6 {[%clk 0:00:42]}  Rxd6 {[%clk 0:01:40]} 27. exd6 {[%clk 0:00:43]}  Bd5 {[%clk 0:01:41]} 28. a3 {[%clk 0:00:43]}  a5 {[%clk 0:01:33]} 29. axb4 {[%clk 0:00:41]}  axb4 {[%clk 0:01:34]} 30. Ra7 {[%clk 0:00:39]}  Kf8 {[%clk 0:01:34]} 31. f4 {[%clk 0:00:32]}  Rb6 {[%clk 0:01:25]} 32. d7 {[%clk 0:00:23]}  Rd6 {[%clk 0:01:26]} 33. f5 {[%clk 0:00:21]}  Bc6 {[%clk 0:01:08]} 34. f6 {[%clk 0:00:15]}  gxf6 {[%clk 0:00:45]} 35. gxf6 {[%clk 0:00:16]}  Rxd7 {[%clk 0:00:34]} 36. Ra6 {[%clk 0:00:16]}  Rd1+ {[%clk 0:00:30]} 37. Nf1 {[%clk 0:00:07]}  Rxf1+ {[%clk 0:00:28]} 0-1

[Event "November 21 Early 2023"]
[Site "https://www.chess.com"]
[Date "2023.11.21"]
[Round "9"]
[White "Pakleza, Zbigniew"]
[Black "Van Foreest, Jorden"]
[Result "0-1"]
[Board "13"]
[TimeControl "180+1"]
[WhiteFideId "1119290"]
[BlackFideId "1039784"]
[WhiteElo "2410"]
[BlackElo "2664"]
[WhiteTeam "POL"]
[BlackTeam "NED"]
[WhiteClock "0:00:00"]
[BlackClock "0:01:24"]

1. d4 {[%clk 0:03:00]}  f5 {[%clk 0:02:58]} 2. Nf3 {[%clk 0:03:00]}  Nf6 {[%clk 0:02:58]} 3. c4 {[%clk 0:03:01]}  e6 {[%clk 0:02:58]} 4. Nc3 {[%clk 0:03:01]}  Bb4 {[%clk 0:02:58]} 5. Qb3 {[%clk 0:03:01]}  Bxc3+ {[%clk 0:02:55]} 6. Qxc3 {[%clk 0:03:02]}  O-O {[%clk 0:02:55]} 7. Bg5 {[%clk 0:02:58]}  d6 {[%clk 0:02:53]} 8. g3 {[%clk 0:02:56]}  Nbd7 {[%clk 0:02:53]} 9. Bg2 {[%clk 0:02:57]}  h6 {[%clk 0:02:54]} 10. Bxf6 {[%clk 0:02:53]}  Qxf6 {[%clk 0:02:55]} 11. O-O {[%clk 0:02:48]}  e5 {[%clk 0:02:55]} 12. dxe5 {[%clk 0:02:48]}  dxe5 {[%clk 0:02:55]} 13. Rfd1 {[%clk 0:02:31]}  e4 {[%clk 0:02:53]} 14. Qxf6 {[%clk 0:02:28]}  Nxf6 {[%clk 0:02:50]} 15. Nd4 {[%clk 0:02:11]}  Bd7 {[%clk 0:02:37]} 16. Nb5 {[%clk 0:01:59]}  Bxb5 {[%clk 0:02:29]} 17. cxb5 {[%clk 0:02:00]}  Rad8 {[%clk 0:02:28]} 18. f3 {[%clk 0:01:54]}  Kf7 {[%clk 0:02:27]} 19. fxe4 {[%clk 0:01:51]}  fxe4 {[%clk 0:02:27]} 20. Rac1 {[%clk 0:01:41]}  Rxd1+ {[%clk 0:02:13]} 21. Rxd1 {[%clk 0:01:41]}  Ke6 {[%clk 0:02:13]} 22. a4 {[%clk 0:01:03]}  Ke5 {[%clk 0:02:12]} 23. Rc1 {[%clk 0:00:56]}  Nd5 {[%clk 0:02:10]} 24. Rc4 {[%clk 0:00:42]}  Nf6 {[%clk 0:01:47]} 25. Rxc7 {[%clk 0:00:40]}  Rd8 {[%clk 0:01:48]} 26. Re7+ {[%clk 0:00:22]}  Kd4 {[%clk 0:01:40]} 27. Kf2 {[%clk 0:00:17]}  e3+ {[%clk 0:01:41]} 28. Ke1 {[%clk 0:00:11]}  Rc8 {[%clk 0:01:30]} 29. Kd1 {[%clk 0:00:11]}  Rc4 {[%clk 0:01:29]} 30. b3 {[%clk 0:00:07]}  Rc3 {[%clk 0:01:29]} 31. Rxb7 {[%clk 0:00:07]}  Ng4 {[%clk 0:01:24]} 32. Rd7+ {[%clk 0:00:00]}  Ke5 {[%clk 0:01:24]} 0-1

[Event "November 21 Early 2023"]
[Site "https://www.chess.com"]
[Date "2023.11.21"]
[Round "9"]
[White "Henriquez Villagra, Cristobal"]
[Black "luckyswitchback"]
[Result "1-0"]
[Board "15"]
[TimeControl "180+1"]
[WhiteFideId "3409350"]
[WhiteElo "2572"]
[BlackElo "2832"]
[WhiteTeam "CHI"]
[WhiteClock "0:00:08"]
[BlackClock "0:00:00"]

1. g3 {[%clk 0:03:00]}  d5 {[%clk 0:02:58]} 2. Bg2 {[%clk 0:03:00]}  e5 {[%clk 0:02:58]} 3. d3 {[%clk 0:02:58]}  Nf6 {[%clk 0:02:58]} 4. Nf3 {[%clk 0:02:59]}  Nbd7 {[%clk 0:02:57]} 5. O-O {[%clk 0:02:58]}  c6 {[%clk 0:02:57]} 6. Nbd2 {[%clk 0:02:53]}  Be7 {[%clk 0:02:56]} 7. e4 {[%clk 0:02:54]}  dxe4 {[%clk 0:02:56]} 8. dxe4 {[%clk 0:02:53]}  O-O {[%clk 0:02:56]} 9. Qe2 {[%clk 0:02:53]}  Qc7 {[%clk 0:02:56]} 10. b3 {[%clk 0:02:53]}  Re8 {[%clk 0:02:48]} 11. Bb2 {[%clk 0:02:53]}  b6 {[%clk 0:02:39]} 12. Rfd1 {[%clk 0:02:52]}  Bf8 {[%clk 0:02:37]} 13. h3 {[%clk 0:02:28]}  a5 {[%clk 0:02:37]} 14. Qe1 {[%clk 0:02:21]}  a4 {[%clk 0:02:34]} 15. Nc4 {[%clk 0:02:16]}  b5 {[%clk 0:02:32]} 16. Ncd2 {[%clk 0:01:41]}  a3 {[%clk 0:02:22]} 17. Bc1 {[%clk 0:01:40]}  Bb4 {[%clk 0:02:21]} 18. Qe3 {[%clk 0:01:39]}  Bc5 {[%clk 0:02:20]} 19. Qe2 {[%clk 0:01:39]}  Nf8 {[%clk 0:02:08]} 20. c3 {[%clk 0:01:38]}  b4 {[%clk 0:02:00]} 21. cxb4 {[%clk 0:01:35]}  Bxb4 {[%clk 0:02:01]} 22. Nc4 {[%clk 0:01:36]}  Ba6 {[%clk 0:01:59]} 23. Qc2 {[%clk 0:01:36]}  Bb5 {[%clk 0:01:40]} 24. Bg5 {[%clk 0:01:26]}  N6d7 {[%clk 0:01:37]} 25. Rac1 {[%clk 0:01:24]}  Ne6 {[%clk 0:01:19]} 26. Be3 {[%clk 0:01:24]}  c5 {[%clk 0:01:18]} 27. Nd6 {[%clk 0:01:13]}  Reb8 {[%clk 0:01:15]} 28. Nxb5 {[%clk 0:01:11]}  Rxb5 {[%clk 0:01:16]} 29. h4 {[%clk 0:01:09]}  Rbb8 {[%clk 0:01:10]} 30. Bh3 {[%clk 0:01:09]}  Ndf8 {[%clk 0:01:08]} 31. Rd5 {[%clk 0:01:07]}  f6 {[%clk 0:00:55]} 32. Qc4 {[%clk 0:01:07]}  Qf7 {[%clk 0:00:54]} 33. Rcd1 {[%clk 0:01:06]}  Rd8 {[%clk 0:00:46]} 34. Rxd8 {[%clk 0:00:58]}  Rxd8 {[%clk 0:00:46]} 35. Rd5 {[%clk 0:00:53]}  Rxd5 {[%clk 0:00:38]} 36. exd5 {[%clk 0:00:52]}  Nd4 {[%clk 0:00:35]} 37. Kg2 {[%clk 0:00:27]}  g6 {[%clk 0:00:11]} 38. Nxd4 {[%clk 0:00:22]}  exd4 {[%clk 0:00:10]} 39. Bf4 {[%clk 0:00:22]}  Kg7 {[%clk 0:00:09]} 40. Bd6 {[%clk 0:00:22]}  Nd7 {[%clk 0:00:09]} 41. Be6 {[%clk 0:00:22]}  Qe8 {[%clk 0:00:09]} 42. Qb5 {[%clk 0:00:19]}  d3 {[%clk 0:00:08]} 43. Qxd3 {[%clk 0:00:17]}  Ne5 {[%clk 0:00:08]} 44. Bxe5 {[%clk 0:00:16]}  fxe5 {[%clk 0:00:09]} 45. Qe3 {[%clk 0:00:12]}  Qb8 {[%clk 0:00:08]} 46. Bg4 {[%clk 0:00:11]}  Qd6 {[%clk 0:00:08]} 47. Qe4 {[%clk 0:00:11]}  Bc3 {[%clk 0:00:08]} 48. Be2 {[%clk 0:00:12]}  Bd4 {[%clk 0:00:08]} 49. Bc4 {[%clk 0:00:13]}  Qf6 {[%clk 0:00:08]} 50. f3 {[%clk 0:00:12]}  Qd6 {[%clk 0:00:08]} 51. Qg4 {[%clk 0:00:13]}  Kf6 {[%clk 0:00:03]} 52. Qc8 {[%clk 0:00:13]}  Kg7 {[%clk 0:00:03]} 53. Qb7+ {[%clk 0:00:13]}  Kh6 {[%clk 0:00:03]} 54. Qc6 {[%clk 0:00:13]}  Qe7 {[%clk 0:00:02]} 55. d6 {[%clk 0:00:13]}  Qf6 {[%clk 0:00:01]} 56. Qd5 {[%clk 0:00:13]}  e4 {[%clk 0:00:01]} 57. fxe4 {[%clk 0:00:08]}  Qf2+ {[%clk 0:00:00]} 58. Kh3 {[%clk 0:00:08]} 1-0

[Event "November 21 Early 2023"]
[Site "https://www.chess.com"]
[Date "2023.11.21"]
[Round "9"]
[White "Baskakov, Egor"]
[Black "Rychkov, Oleg"]
[Result "1-0"]
[Board "18"]
[TimeControl "180+1"]
[WhiteFideId "24197866"]
[BlackFideId "4122852"]
[WhiteElo "2225"]
[BlackElo "2398"]
[WhiteTeam "RUS"]
[BlackTeam "RUS"]
[WhiteClock "0:00:20"]
[BlackClock "0:00:06"]

1. e4 {[%clk 0:03:00]}  e5 {[%clk 0:02:59]} 2. Nc3 {[%clk 0:02:59]}  Nf6 {[%clk 0:02:59]} 3. g3 {[%clk 0:03:00]}  d5 {[%clk 0:02:58]} 4. exd5 {[%clk 0:03:00]}  Nxd5 {[%clk 0:02:58]} 5. Bg2 {[%clk 0:03:01]}  Nxc3 {[%clk 0:02:58]} 6. bxc3 {[%clk 0:03:02]}  Nc6 {[%clk 0:02:59]} 7. d3 {[%clk 0:03:02]}  Bc5 {[%clk 0:02:58]} 8. Ne2 {[%clk 0:03:02]}  O-O {[%clk 0:02:57]} 9. O-O {[%clk 0:03:02]}  Bb6 {[%clk 0:02:57]} 10. h3 {[%clk 0:03:01]}  Qf6 {[%clk 0:02:56]} 11. Kh2 {[%clk 0:02:59]}  Be6 {[%clk 0:02:36]} 12. f4 {[%clk 0:02:49]}  exf4 {[%clk 0:02:36]} 13. Bxf4 {[%clk 0:02:50]}  Qe7 {[%clk 0:02:33]} 14. Qd2 {[%clk 0:02:30]}  Rad8 {[%clk 0:02:29]} 15. Rae1 {[%clk 0:02:16]}  Qa3 {[%clk 0:02:24]} 16. Bg5 {[%clk 0:02:14]}  Rde8 {[%clk 0:02:23]} 17. Bf6 {[%clk 0:01:29]}  gxf6 {[%clk 0:01:59]} 18. Qh6 {[%clk 0:01:26]}  Ne7 {[%clk 0:01:18]} 19. Rxf6 {[%clk 0:00:51]}  Ng6 {[%clk 0:00:48]} 20. Nf4 {[%clk 0:00:38]}  Kh8 {[%clk 0:00:22]} 21. Rexe6 {[%clk 0:00:20]}  Nxf4 {[%clk 0:00:12]} 22. Rxf7 {[%clk 0:00:20]}  Bg1+ {[%clk 0:00:08]} 23. Kh1 {[%clk 0:00:20]}  Nxe6 {[%clk 0:00:06]} 24. Qxh7# {[%clk 0:00:20]} 1-0